fUSD/lending_fUSD_20260510
["ID","MTS","AMOUNT","RATE_DAILY","PERIOD"]
[421986244,1778406249000,174.05,0.00026092,120]
[421986278,1778406633000,-9999.99,0.00014478,2]
[421986279,1778406633000,-150.0,0.00014478,2]
[421986283,1778406633000,-671.0,0.00015066,2]
[421986284,1778406633000,-291.33,0.00015398,2]
[421986285,1778406633000,-255.0,0.00015607,2]
[421986287,1778406633000,-214.7734975,0.0001619,2]
[421986286,1778406633000,-160.0,0.0001619,2]
[421986289,1778406633000,-200.0,0.00016615,2]
[421986276,1778406633000,-61402.19,0.00014051,2]
[421986290,1778406633000,-328.0,0.00016823,2]
[421986292,1778406633000,-823.0,0.00018026,2]
[421986294,1778406633000,-924.83,0.0001847,2]
[421986288,1778406633000,-587.0,0.00016449,2]
[421986277,1778406633000,-151.08590078,0.00014407,2]
[421986273,1778406633000,-300.0,0.00013696,2]
[421986282,1778406633000,-420.0,0.00015009,2]
[421986280,1778406633000,-999.99,0.00014479,2]
[421986293,1778406633000,-239.15,0.0001815,2]
[421986274,1778406633000,-1680.0,0.00013696,2]
[421986272,1778406633000,-300.0,0.00013696,2]
[421986270,1778406633000,-422.46,0.00012498,2]
[421986268,1778406633000,-250.0,0.00011292,2]
[421986271,1778406633000,-468.38,0.00013627,2]
[421986265,1778406633000,-422.46,0.00010295,2]
[421986267,1778406633000,-207.11933784,0.00011292,2]
[421986269,1778406633000,-1200.0,0.00012451,2]
[421986266,1778406633000,-250.0,0.00011292,2]
[421986263,1778406633000,-5854.15487674,0.00010265,2]
[421986264,1778406633000,-250.0,0.0001028,2]
[421986275,1778406633000,-250.42598963,0.00014042,2]
[421986291,1778406633000,-174.05,0.00017394,2]
[421986281,1778406633000,-422.46,0.00014701,2]
[421986296,1778406633000,-3802.7206,0.00018893,2]
[421986295,1778406633000,-169.27,0.00018529,2]
[421986327,1778406633000,-500.0,0.00019705,2]
[421986324,1778406633000,-500.0,0.00019705,2]
[421986326,1778406633000,-500.0,0.00019705,2]
[421986323,1778406633000,-500.0,0.00019705,2]
[421986322,1778406633000,-500.0,0.00019705,2]
[421986321,1778406633000,-500.0,0.00019705,2]
[421986319,1778406633000,-500.0,0.00019705,2]
[421986320,1778406633000,-227.95200647,0.00019705,2]
[421986313,1778406633000,-500.0,0.00019705,2]
[421986316,1778406633000,-500.0,0.00019705,2]
[421986318,1778406633000,-167.69086288,0.00019705,2]
[421986317,1778406633000,-614.47842877,0.00019705,2]
[421986315,1778406633000,-186.54294223,0.00019705,2]
[421986325,1778406633000,-376.68387808,0.00019705,2]
[421986314,1778406633000,-500.0,0.00019705,2]
[421986305,1778406633000,-1143.19756287,0.00019625,2]
[421986311,1778406633000,-500.0,0.00019705,2]
[421986310,1778406633000,-500.0,0.00019705,2]
[421986309,1778406633000,-500.0,0.00019705,2]
[421986308,1778406633000,-759.81031283,0.00019629,2]
[421986307,1778406633000,-3839.65350871,0.00019629,2]
[421986301,1778406633000,-1143.19756287,0.00019427,2]
[421986306,1778406633000,-159.96867508,0.00019629,2]
[421986303,1778406633000,-5000.0,0.00019606,2]
[421986312,1778406633000,-500.0,0.00019705,2]
[421986298,1778406633000,-1143.19756287,0.00018993,2]
[421986304,1778406633000,-2500.0,0.00019606,2]
[421986302,1778406633000,-2000.0,0.00019606,2]
[421986300,1778406633000,-1143.19756287,0.00019168,2]
[421986299,1778406633000,-756.07136114,0.00019128,2]
[421986297,1778406633000,-7590.6698,0.00018893,2]
[421986328,1778406634000,-500.0,0.00019705,2]
[421986329,1778406634000,-500.0,0.00019705,2]
[421986330,1778406634000,-500.0,0.00019705,2]
[421986331,1778406634000,-500.0,0.00019705,2]
[421986333,1778406634000,-208.58257101,0.00019705,2]
[421986335,1778406634000,-151194.5643875,0.00019706,2]
[421986334,1778406634000,-500.0,0.00019705,2]
[421986332,1778406634000,-500.0,0.00019705,2]
[421986340,1778406638000,-380.52932165,0.00019706,2]
[421986341,1778406638000,-329.35392288,0.00019706,2]
[421986339,1778406638000,-26483.85920591,0.00019706,2]
[421986351,1778406640000,-1161.34981408,0.00019706,2]
[421986350,1778406640000,-473.93335833,0.00019706,2]
[421986349,1778406640000,-3924.77440229,0.00019706,2]
[421986348,1778406640000,-509.65562623,0.00019706,2]
[421986347,1778406640000,-4525.71865252,0.00019706,2]
[421986384,1778406725000,196.0,0.00027397,120]
[421986385,1778406851000,2500.0,0.00027397,120]
[421986386,1778406970000,2991.85,0.00027397,120]
[421986393,1778407492000,162.47,9.735e-05,2]
[421986395,1778407558000,-162.47,0.00010817,2]
[421986396,1778407558000,-1317.46892926,0.00011,2]
[421986398,1778407616000,-579.49007644,0.00011,2]
[421986399,1778407691000,735.5,0.00027397,120]
[421986414,1778407746000,-528.65168052,0.000149,2]
[421986420,1778407746000,-500.0,0.00014999,2]
[421986417,1778407746000,-480.06524292,0.00014999,2]
[421986416,1778407746000,-500.0,0.00014999,2]
[421986413,1778407746000,-3359.69682013,0.000149,2]
[421986415,1778407746000,-2500.0,0.000149,2]
[421986412,1778407746000,-159.96867501,0.000149,2]
[421986411,1778407746000,-5000.0,0.000149,2]
[421986409,1778407746000,-162.47,0.00014062,2]
[421986403,1778407746000,-6476.21271743,0.00011,2]
[421986408,1778407746000,-162.47,0.0001298,2]
[421986410,1778407746000,-368.72891474,0.000149,2]
[421986406,1778407746000,-162.47,0.00011898,2]
[421986404,1778407746000,-579.49007644,0.000113,2]
[421986419,1778407746000,-500.0,0.00014999,2]
[421986405,1778407746000,-2553.11387223,0.000114,2]
[421986402,1778407746000,-250.0,0.00010909,2]
[421986401,1778407746000,-260.0,0.00010817,2]
[421986407,1778407746000,-250.0,0.00011899,2]
[421986418,1778407746000,-500.0,0.00014999,2]
[421986436,1778407746000,-500.0,0.00014999,2]
[421986421,1778407746000,-500.0,0.00014999,2]
[421986439,1778407746000,-500.0,0.00014999,2]
[421986441,1778407746000,-500.0,0.00014999,2]
[421986440,1778407746000,-500.0,0.00014999,2]
[421986438,1778407746000,-500.0,0.00014999,2]
[421986437,1778407746000,-500.0,0.00014999,2]
[421986435,1778407746000,-1093.8672339,0.00014999,5]
[421986434,1778407746000,-160.869,0.00014999,2]
[421986433,1778407746000,-2185.556,0.00014999,2]
[421986432,1778407746000,-177.98466873,0.00014999,2]
[421986422,1778407746000,-500.0,0.00014999,2]
[421986431,1778407746000,-500.0,0.00014999,2]
[421986429,1778407746000,-500.0,0.00014999,2]
[421986427,1778407746000,-500.0,0.00014999,2]
[421986428,1778407746000,-500.0,0.00014999,2]
[421986426,1778407746000,-500.0,0.00014999,2]
[421986425,1778407746000,-500.0,0.00014999,2]
[421986424,1778407746000,-516.1301834,0.00014999,2]
[421986423,1778407746000,-500.0,0.00014999,2]
[421986430,1778407746000,-500.0,0.00014999,2]
[421986442,1778407747000,-500.0,0.00014999,2]
[421986443,1778407747000,-571.3861099,0.00014999,2]
[421986444,1778407747000,-7354.31551472,0.00015,2]
[421986445,1778407762000,-250.0,0.00011899,2]
[421986446,1778407762000,-8732.6212,0.00015,2]
[421986459,1778407831000,-287.06431718,0.00014899,2]
[421986461,1778407831000,-301.7594973,0.00014899,2]
[421986460,1778407831000,-12.93568282,0.00014899,2]
[421986467,1778407832000,-5000.0,0.000149,2]
[421986470,1778407832000,-300.0,0.00014988,2]
[421986465,1778407832000,-245.81927648,0.000149,2]
[421986471,1778407832000,-555.69296719,0.00014988,2]
[421986468,1778407832000,-300.0,0.00014988,2]
[421986466,1778407832000,-1858.56742255,0.000149,2]
[421986464,1778407832000,-600.0,0.000149,2]
[421986462,1778407832000,-50.0,0.00014899,2]
[421986463,1778407832000,-300.0,0.000149,2]
[421986469,1778407832000,-300.0,0.00014988,2]
[421986480,1778407838000,-380.52932165,0.00014999,2]
[421986478,1778407838000,-82.92375215,0.00014988,2]
[421986479,1778407838000,-26400.93545376,0.00014999,2]
[421986481,1778407838000,-1964.50631494,0.00014999,2]
[421986484,1778407838000,-3616.05434441,0.00014999,2]
[421986483,1778407838000,-313.34225636,0.00014999,2]
[421986482,1778407838000,-943.95117524,0.00014999,2]
[421986505,1778407840000,-11022.6279,0.00014999,2]
[421986515,1778407842000,-339.96965201,0.00014999,2]
[421986516,1778407843000,-19599.5744411,0.00014999,2]
[421986517,1778407843000,-9338.58622297,0.00014999,2]
[421986526,1778407845000,-29934.74437023,0.00014999,2]
[421986527,1778407845000,-9929.80457109,0.00015,2]
[421986534,1778407955000,224.162186,0.00025922,120]
[421986535,1778408099000,1354.06,0.00010379,2]
[421986540,1778408244000,170.0,0.00012,3]
[421986549,1778408837000,-150.0,0.00013488,2]
[421986550,1778408837000,-150.0,0.00013488,2]
[421986548,1778408837000,-150.0,0.00013488,2]
[421986547,1778408837000,-159.93,0.00010716,2]
[421986552,1778408837000,-150.0,0.00013488,2]
[421986553,1778408837000,-150.0,0.00013488,2]
[421986555,1778408837000,-125.77813059,0.00013488,2]
[421986554,1778408837000,-150.0,0.00013488,2]
[421986551,1778408837000,-150.0,0.00013488,2]
[421986571,1778408960000,-150.0,0.00013849,2]
[421986572,1778408960000,-150.0,0.00013862,2]
[421986570,1778408960000,-150.0,0.00013798,2]
[421986568,1778408960000,-150.0,0.0001376,2]
[421986569,1778408960000,-150.0,0.00013787,2]
[421986567,1778408960000,-150.0,0.00013746,2]
[421986564,1778408960000,-150.0,0.00013694,2]
[421986565,1778408960000,-150.0,0.00013702,2]
[421986562,1778408960000,-150.0,0.00013624,2]
[421986563,1778408960000,-150.0,0.00013643,2]
[421986560,1778408960000,-150.0,0.00013591,2]
[421986561,1778408960000,-150.0,0.00013613,2]
[421986559,1778408960000,-150.0,0.00013539,2]
[421986558,1778408960000,-24.22186941,0.00013488,2]
[421986556,1778408960000,-2436.88,0.00013394,2]
[421986557,1778408960000,-1062.36,0.00013415,2]
[421986574,1778408960000,-150.0,0.00013896,2]
[421986566,1778408960000,-150.0,0.00013737,2]
[421986573,1778408960000,-150.0,0.00013862,2]
[421986579,1778408960000,-250.0,0.00014,2]
[421986577,1778408960000,-150.0,0.00013953,2]
[421986575,1778408960000,-150.0,0.00013901,2]
[421986594,1778408960000,-150.0,0.00014263,2]
[421986593,1778408960000,-150.0,0.00014237,2]
[421986590,1778408960000,-150.0,0.00014211,2]
[421986589,1778408960000,-150.0,0.00014169,2]
[421986587,1778408960000,-150.0,0.0001413,2]
[421986588,1778408960000,-150.0,0.00014159,2]
[421986586,1778408960000,-150.0,0.00014112,2]
[421986591,1778408960000,-910.94,0.00014227,2]
[421986584,1778408960000,-150.0,0.00014087,2]
[421986582,1778408960000,-300.0,0.00014033,2]
[421986583,1778408960000,-150.0,0.00014056,2]
[421986580,1778408960000,-150.0,0.00014004,2]
[421986581,1778408960000,-150.0,0.00014033,2]
[421986592,1778408960000,-150.0,0.00014237,2]
[421986578,1778408960000,-150.0,0.00013987,2]
[421986576,1778408960000,-150.0,0.00013916,2]
[421986585,1778408960000,-150.0,0.00014108,2]
[421986608,1778408961000,-150.0,0.00014573,2]
[421986607,1778408961000,-150.0,0.00014558,2]
[421986609,1778408961000,-150.0,0.00014578,2]
[421986611,1778408961000,-150.0,0.00014612,2]
[421986616,1778408961000,-585.790478,0.000147,2]
[421986612,1778408961000,-150.0,0.00014612,2]
[421986614,1778408961000,-150.0,0.00014676,2]
[421986606,1778408961000,-150.0,0.00014521,2]
[421986610,1778408961000,-300.0,0.00014594,2]
[421986605,1778408961000,-150.0,0.00014487,2]
[421986596,1778408961000,-150.0,0.00014305,2]
[421986602,1778408961000,-150.0,0.00014418,2]
[421986603,1778408961000,-150.0,0.00014441,2]
[421986600,1778408961000,-150.0,0.00014366,2]
[421986601,1778408961000,-150.0,0.00014387,2]
[421986599,1778408961000,-150.0,0.00014362,2]
[421986597,1778408961000,-150.0,0.00014315,2]
[421986598,1778408961000,-150.0,0.00014344,2]
[421986615,1778408961000,-150.0,0.00014687,2]
[421986595,1778408961000,-200.0,0.00014288,2]
[421986604,1778408961000,-150.0,0.0001447,2]
[421986618,1778408961000,-224.162187,0.000147,2]
[421986613,1778408961000,-150.0,0.00014625,2]
[421986619,1778408961000,-150.0,0.00014714,2]
[421986638,1778408961000,-150.0,0.00014831,2]
[421986639,1778408961000,-899.54232462,0.00014833,2]
[421986637,1778408961000,-899.54232462,0.00014822,2]
[421986636,1778408961000,-899.54232462,0.00014811,2]
[421986635,1778408961000,-557.58134562,0.000148,2]
[421986633,1778408961000,-5000.0,0.000148,2]
[421986634,1778408961000,-899.54232463,0.000148,2]
[421986632,1778408961000,-3410.72710451,0.000148,2]
[421986631,1778408961000,-160.87,0.000148,2]
[421986630,1778408961000,-1930.56,0.000148,2]
[421986629,1778408961000,-4973.2524,0.000148,2]
[421986627,1778408961000,-150.0,0.0001478,2]
[421986628,1778408961000,-195.56752305,0.000148,2]
[421986625,1778408961000,-150.0,0.00014737,2]
[421986626,1778408961000,-150.0,0.00014772,2]
[421986623,1778408961000,-300.0,0.00014734,2]
[421986624,1778408961000,-291.55670359,0.00014734,2]
[421986640,1778408961000,-36.9863156,0.00014844,2]
[421986622,1778408961000,-300.0,0.00014734,2]
[421986620,1778408961000,-150.0,0.00014728,2]
[421986621,1778408961000,-300.0,0.00014734,2]
[421986617,1778408961000,-234.174528,0.000147,2]
[421986641,1778408968000,-179.6524044,0.000148,2]
[421986669,1778409031000,-452.34929037,0.000148,2]
[421986685,1778409031000,-8619.67861961,0.000148,2]
[421986684,1778409031000,-494.97495455,0.000148,2]
[421986689,1778409032000,-334.02485,0.000148,2]
[421986688,1778409032000,-310.55827694,0.000148,2]
[421986686,1778409032000,-993.21706718,0.000148,2]
[421986687,1778409032000,-1158.45634641,0.000148,2]
[421986703,1778409038000,-544.24466821,0.00014202,2]
[421986704,1778409038000,-5019.73533179,0.00014202,2]
[421986705,1778409038000,-4387.31645968,0.000148,2]
[421986708,1778409038000,-11776.80741444,0.00014811,2]
[421986707,1778409038000,-300.0,0.00014806,2]
[421986706,1778409038000,-5000.0,0.000148,2]
[421986711,1778409038000,-474.06957463,0.00014811,2]
[421986710,1778409038000,-4187.07730085,0.00014811,2]
[421986712,1778409038000,-111.74465755,0.00014811,2]
[421986713,1778409038000,-300.0,0.00014822,2]
[421986715,1778409038000,-489.22767138,0.00014822,2]
[421986714,1778409038000,-300.0,0.00014822,2]
[421986709,1778409038000,-380.52932165,0.00014811,2]
[421986739,1778409040000,-3883.77440229,0.00014822,2]
[421986737,1778409040000,-471.88506992,0.00014822,2]
[421986738,1778409040000,-644.20590704,0.00014822,2]
[421986755,1778409043000,-3304.19561816,0.00014822,2]
[421986754,1778409043000,-900.05641542,0.00014822,2]
[421986753,1778409043000,-4426.87703476,0.00014822,2]
[421986758,1778409045000,-2810.00615015,0.00014822,2]
[421986759,1778409045000,-14427.14715504,0.00014833,2]
[421986762,1778409045000,-163.32,0.00014844,2]
[421986761,1778409045000,-67.44511939,0.00014833,2]
[421986763,1778409045000,-862.55600902,0.00014844,2]
[421986760,1778409045000,-2435.63599469,0.00014833,2]
[421986777,1778409046000,-580.45,0.00014867,2]
[421986775,1778409046000,-958.8,0.00014867,2]
[421986774,1778409046000,-9999.99,0.00014867,2]
[421986773,1778409046000,-899.54232462,0.00014867,2]
[421986771,1778409046000,-16930.22826912,0.00014856,2]
[421986770,1778409046000,-899.54232462,0.00014856,2]
[421986772,1778409046000,-150.0,0.00014861,2]
[421986767,1778409046000,-4663.79540423,0.00014844,2]
[421986768,1778409046000,-150.0,0.0001485,2]
[421986769,1778409046000,-165.65,0.00014852,2]
[421986766,1778409046000,-4158.33223496,0.00014844,2]
[421986765,1778409046000,-2700.5218645,0.00014844,2]
[421986764,1778409046000,-5407.57876543,0.00014844,2]
[421986776,1778409046000,-16930.22826912,0.00014867,2]
[421986779,1778409046000,-16930.22826912,0.00014878,2]
[421986778,1778409046000,-899.54232462,0.00014878,2]
[421986781,1778409046000,-899.54232462,0.00014889,2]
[421986796,1778409046000,-73682.21743171,0.000149,2]
[421986793,1778409046000,-163.87951766,0.000149,2]
[421986782,1778409046000,-16930.22826912,0.00014889,2]
[421986794,1778409046000,-198022.09470782,0.000149,2]
[421986792,1778409046000,-26781.46477541,0.00014899,2]
[421986791,1778409046000,-168.45890927,0.00014899,2]
[421986790,1778409046000,-500.0,0.00014899,2]
[421986789,1778409046000,-340.08575624,0.00014899,2]
[421986787,1778409046000,-500.0,0.00014899,2]
[421986786,1778409046000,-386.04567004,0.00014899,2]
[421986785,1778409046000,-500.0,0.00014899,2]
[421986784,1778409046000,-500.0,0.00014899,2]
[421986780,1778409046000,-150.0,0.00014883,2]
[421986783,1778409046000,-181.23365626,0.0001489,2]
[421986788,1778409046000,-500.0,0.00014899,2]
[421986797,1778409166000,735.251971,0.00025676,120]
[421986798,1778409299000,2004.27,0.00010379,2]
[421986800,1778409320000,367.625986,0.0002499,120]
[421986804,1778409506000,172.28802247,0.00027397,120]
[421986805,1778409760000,183.812993,0.00023923,120]
[421986807,1778410039000,-200.0,0.00013854,2]
[421986808,1778410039000,-264.45037401,0.00013854,2]
[421986809,1778410153000,-201.3922352,0.00013771,2]
[421986811,1778410153000,-500.0,0.00013871,2]
[421986810,1778410153000,-324.99962599,0.00013854,2]
[421986813,1778410153000,-1200.0,0.00013922,2]
[421986814,1778410153000,-11820.11961584,0.00013923,2]
[421986812,1778410153000,-1249.88,0.00013896,2]
[421986815,1778410166000,-371.89038416,0.00013923,2]
[421986817,1778410166000,-250.0,0.00014,2]
[421986818,1778410166000,-200.0,0.00014225,2]
[421986816,1778410166000,-2696.25,0.00013926,2]
[421986819,1778410166000,-152.0,0.00014289,2]
[421986821,1778410166000,-2793.01020461,0.00014632,2]
[421986822,1778410166000,-151.0984,0.000147,2]
[421986823,1778410166000,-1285.02241723,0.00014711,2]
[421986820,1778410166000,-523.5,0.00014522,2]
[421986851,1778410233000,-500.0,0.00014732,2]
[421986847,1778410233000,-500.0,0.00014732,2]
[421986853,1778410233000,-500.0,0.00014732,2]
[421986855,1778410233000,-500.0,0.00014732,2]
[421986850,1778410233000,-500.0,0.00014732,2]
[421986849,1778410233000,-500.0,0.00014732,2]
[421986869,1778410233000,-500.0,0.00014732,2]
[421986859,1778410233000,-500.0,0.00014732,2]
[421986857,1778410233000,-500.0,0.00014732,2]
[421986856,1778410233000,-500.0,0.00014732,2]
[421986858,1778410233000,-500.0,0.00014732,2]
[421986848,1778410233000,-500.0,0.00014732,2]
[421986863,1778410233000,-157.62782625,0.00014732,2]
[421986866,1778410233000,-550.0,0.00014732,2]
[421986852,1778410233000,-500.0,0.00014732,2]
[421986854,1778410233000,-500.0,0.00014732,2]
[421986837,1778410233000,-500.0,0.00014732,2]
[421986845,1778410233000,-500.0,0.00014732,2]
[421986829,1778410233000,-74736.30895821,0.00014711,2]
[421986831,1778410233000,-760.0,0.00014711,2]
[421986830,1778410233000,-902.0,0.00014711,2]
[421986833,1778410233000,-500.0,0.00014732,2]
[421986843,1778410233000,-500.0,0.00014732,2]
[421986832,1778410233000,-29551.24372456,0.00014711,2]
[421986844,1778410233000,-500.0,0.00014732,2]
[421986834,1778410233000,-500.0,0.00014732,2]
[421986835,1778410233000,-500.0,0.00014732,2]
[421986841,1778410233000,-500.0,0.00014732,2]
[421986839,1778410233000,-500.0,0.00014732,2]
[421986840,1778410233000,-500.0,0.00014732,2]
[421986836,1778410233000,-500.0,0.00014732,2]
[421986842,1778410233000,-500.0,0.00014732,2]
[421986838,1778410233000,-500.0,0.00014732,2]
[421986860,1778410233000,-500.0,0.00014732,2]
[421986846,1778410233000,-500.0,0.00014732,2]
[421986865,1778410233000,-500.0,0.00014732,2]
[421986909,1778410233000,-151.0,0.00014866,2]
[421986913,1778410233000,-151.0,0.00014866,2]
[421986915,1778410233000,-175.42277483,0.00014866,2]
[421986903,1778410233000,-151.0,0.00014866,2]
[421986905,1778410233000,-151.0,0.00014866,2]
[421986907,1778410233000,-151.0,0.00014866,2]
[421986911,1778410233000,-151.0,0.00014866,2]
[421986917,1778410233000,-82327.8058461,0.00014875,2]
[421986924,1778410233000,-151.0,0.00014875,2]
[421986920,1778410233000,-174.5696385,0.00014875,2]
[421986930,1778410233000,-151.0,0.00014875,2]
[421986928,1778410233000,-151.0,0.00014875,2]
[421986926,1778410233000,-151.0,0.00014875,2]
[421986861,1778410233000,-500.0,0.00014732,2]
[421986922,1778410233000,-51731.0956138,0.00014875,2]
[421986899,1778410233000,-151.0,0.00014866,2]
[421986932,1778410233000,-151.0,0.00014875,2]
[421986897,1778410233000,-151.0,0.00014866,2]
[421986901,1778410233000,-151.0,0.00014866,2]
[421986864,1778410233000,-500.0,0.00014732,2]
[421986871,1778410233000,-500.0,0.00014732,2]
[421986881,1778410233000,-500.0,0.00014733,2]
[421986887,1778410233000,-500.0,0.00014733,2]
[421986883,1778410233000,-500.0,0.00014733,2]
[421986885,1778410233000,-500.0,0.00014733,2]
[421986862,1778410233000,-500.0,0.00014732,2]
[421986889,1778410233000,-125207.79223288,0.00014733,2]
[421986875,1778410233000,-500.0,0.00014732,2]
[421986877,1778410233000,-500.0,0.00014732,2]
[421986879,1778410233000,-500.0,0.00014732,2]
[421986895,1778410233000,-27562.8146,0.000148,2]
[421986891,1778410233000,-6943.40706712,0.00014733,2]
[421986873,1778410233000,-500.0,0.00014732,2]
[421986893,1778410233000,-11414.63417036,0.00014775,2]
[421986960,1778410234000,-525.98796735,0.00014899,2]
[421986954,1778410234000,-500.0,0.00014899,2]
[421986974,1778410234000,-198.4842315,0.000149,2]
[421986976,1778410234000,-249.22264444,0.00014925,2]
[421986972,1778410234000,-352.43445368,0.000149,2]
[421986979,1778410234000,-500.0,0.00014999,2]
[421986988,1778410234000,-500.0,0.00014999,2]
[421986981,1778410234000,-274.26088339,0.00014999,2]
[421986980,1778410234000,-500.0,0.00014999,2]
[421986984,1778410234000,-500.0,0.00014999,2]
[421986958,1778410234000,-500.0,0.00014899,2]
[421986978,1778410234000,-500.0,0.00014932,2]
[421986982,1778410234000,-187.03858706,0.00014999,2]
[421986948,1778410234000,-500.0,0.00014899,2]
[421986969,1778410234000,-5000.0,0.000149,2]
[421986965,1778410234000,-193.06167612,0.000149,2]
[421986967,1778410234000,-436.9394756,0.000149,2]
[421986950,1778410234000,-155.598,0.00014899,2]
[421986952,1778410234000,-500.0,0.00014899,2]
[421986963,1778410234000,-163.87951765,0.000149,2]
[421986942,1778410234000,-523.5,0.00014886,2]
[421986944,1778410234000,-1238.59,0.00014886,2]
[421986946,1778410234000,-213.33,0.0001489,2]
[421986940,1778410234000,-299.99,0.00014875,2]
[421986937,1778410234000,-151.0,0.00014875,2]
[421986936,1778410234000,-151.0,0.00014875,2]
[421986934,1778410234000,-151.0,0.00014875,2]
[421986986,1778410234000,-540.16277606,0.00014999,2]
[421986956,1778410234000,-500.0,0.00014899,2]
[421986990,1778410234000,-500.0,0.00014999,2]
[421987027,1778410234000,-500.0,0.00014999,2]
[421986994,1778410234000,-500.0,0.00014999,2]
[421987031,1778410234000,-36492.43798479,0.00015,2]
[421987032,1778410234000,-1254.41808677,0.00015,2]
[421987034,1778410234000,-1715.81439262,0.00015,2]
[421987033,1778410234000,-3707.89358089,0.00015,2]
[421987029,1778410234000,-500.0,0.00014999,2]
[421987030,1778410234000,-508.180674,0.00014999,2]
[421987024,1778410234000,-500.0,0.00014999,2]
[421987022,1778410234000,-500.0,0.00014999,2]
[421987026,1778410234000,-500.0,0.00014999,2]
[421987023,1778410234000,-206.48407503,0.00014999,2]
[421987019,1778410234000,-501.09437893,0.00014999,2]
[421987025,1778410234000,-500.0,0.00014999,2]
[421986992,1778410234000,-500.0,0.00014999,2]
[421987021,1778410234000,-500.0,0.00014999,2]
[421987020,1778410234000,-500.0,0.00014999,2]
[421987017,1778410234000,-500.0,0.00014999,2]
[421986996,1778410234000,-500.0,0.00014999,2]
[421987011,1778410234000,-500.0,0.00014999,2]
[421987012,1778410234000,-509.43717845,0.00014999,2]
[421987013,1778410234000,-500.0,0.00014999,2]
[421987028,1778410234000,-500.0,0.00014999,2]
[421987015,1778410234000,-500.0,0.00014999,2]
[421987014,1778410234000,-500.0,0.00014999,2]
[421987008,1778410234000,-500.0,0.00014999,2]
[421987009,1778410234000,-500.0,0.00014999,2]
[421987005,1778410234000,-500.0,0.00014999,2]
[421987016,1778410234000,-500.0,0.00014999,2]
[421987018,1778410234000,-500.0,0.00014999,2]
[421987003,1778410234000,-500.0,0.00014999,2]
[421987040,1778410238000,-103835.30754357,0.00015,2]
[421987041,1778410238000,-595.0,0.00015,2]
[421987042,1778410238000,-65832.0246286,0.00015,2]
[421987043,1778410238000,-507.71285999,0.00015,2]
[421987044,1778410238000,-187690.43678859,0.00015,2]
[421987047,1778410238000,-6149.7,0.00015,2]
[421987046,1778410238000,-380.52932165,0.00015,2]
[421987048,1778410238000,-579.25293646,0.00015,2]
[421987045,1778410238000,-26483.85920591,0.00015,2]
[421987059,1778410240000,-1172.31276184,0.00015,2]
[421987060,1778410240000,-253.24101467,0.00015,2]
[421987061,1778410240000,-392.56681498,0.00015,2]
[421987062,1778410240000,-5319.15293161,0.00015,2]
[421987063,1778410240000,-57146.72560142,0.00015,2]
[421987065,1778410240000,-42041.29823631,0.00015,2]
[421987064,1778410240000,-384.01,0.00015,2]
[421987066,1778410240000,-1463.02402454,0.00015,2]
[421987067,1778410240000,-270.00005,0.00015,2]
[421987075,1778410243000,-300.0,0.00015,2]
[421987078,1778410246000,-1885.835,0.00015,2]
[421987080,1778410246000,-7165.02,0.00015,2]
[421987081,1778410246000,-4232.73491026,0.00015,2]
[421987079,1778410246000,-787.94,0.00015,2]